Cogmind - Beta 14 @@@ ROGUE MODE // 2025.03.26 @ 17:50:35 Player: GiggleBox Result: Destroyed by U3-MDP(R) with Subdweller Laser Performance ------------- Evolutions (0) 0 Regions Visited (2) 400 Robots Destroyed (30) 150 Value Destroyed (845) 845 Prototype IDs (2) 40 Alien Tech Used (0) 0 Bonus (0) 0 TOTAL SCORE: 1435 Bonus ------- None Cogmind --------- Core Integrity 0/250 Matter 138/300 Energy 99/100 System Corruption 0% Temperature Cool (12) Movement Rolling (120) Ox1 Location -10/Subcaves Parts ------- > --- POWER (1) -------- (None) > --- PROPULSION (2) --- Subdweller Monowheel > --- UTILITY (2) ------ Large Storage Unit > --- WEAPON (2) ------- Improved Light Cannon Mace > --- INVENTORY (15) --- Signal Interpreter Improved Terrain Scanner Improved Targeting Computer Improved Targeting Computer Assault Rifle Improved Light Cannon Improved Light Cannon Datajack Peak State ------------ > --- POWER ------------ Ion Engine > --- PROPULSION ------- Aluminum Leg Aluminum Leg > --- UTILITY ---------- Large Storage Unit Medium Armor Plating > --- WEAPON ----------- Barrage Gun Improved Light Cannon > --- INVENTORY -------- Ion Engine Large Matter Pod Improved Terrain Scanner Seismic Detector Improved Targeting Computer Improved Targeting Computer Assault Rifle Assault Rifle Improved Light Cannon Improved Light Cannon Rocket Launcher Datajack Mace [Rating: 13] Favorites ----------- Power Ion Engine Engine Ion Engine Propulsion Aluminum Leg Leg Aluminum Leg Wheel Subdweller Monowheel Utility Large Storage Unit Device Seismic Detector Storage Large Storage Unit Protection Medium Armor Plating Weapon Assault Rifle Energy Gun EM Pulse Gun Ballistic Gun Assault Rifle Ballistic Cannon Improved Light Cannon Launcher Rocket Launcher Impact Weapon Mace Special Melee Weapon Datajack Build | -11 -10 -10 ------- Run | Yrd Mat Sub Slots Evolved . | . . . Power . | . . . Propulsion . | . . . Utility . | . . . Weapon . | . . . Parts Attached 57 | 7 24 26 Power 2 | 1 . 1 Engine 2 | 1 . 1 Core . | . . . Reactor . | . . . Propulsion 8 | 2 2 4 Treads . | . . . Leg 6 | 2 2 2 Wheel 2 | . . 2 Hover . | . . . Flight . | . . . Utility 13 | 2 6 5 Device 7 | 1 3 3 Storage 5 | 1 3 1 Processor . | . . . Hackware . | . . . Protection 1 | . . 1 Artifact . | . . . Weapon 34 | 2 16 16 Energy Gun 1 | . 1 . Energy Cannon . | . . . Ballistic Gun 12 | 2 6 4 Ballistic Cannon 4 | . . 4 Launcher 9 | . 6 3 Special Weapon . | . . . Impact Weapon 4 | . . 4 Slashing Weapon . | . . . Piercing Weapon . | . . . Special Melee Weapon 4 | . 3 1 Unidentified Prototypes . | . . . Parts Lost 15 | . 1 14 Power 2 | . . 2 Propulsion 5 | . . 5 Utility 3 | . . 3 Weapon 5 | . 1 4 Highest Loss Streak 5 | . 1 5 To Critical Strikes . | . . . Average Slot Usage (%) 99 | . 100 98 Engine 13 | . 14 13 Leg 26 | . 28 24 Wheel 1 | . . 3 Device 7 | . 5 8 Storage 19 | . 22 15 Protection 1 | . . 2 Energy Gun 1 | . 2 . Ballistic Gun 19 | . 22 15 Ballistic Cannon 1 | . . 4 Launcher 1 | . . 2 Impact Weapon 2 | . . 4 Special Melee Weapon 1 | . 2 . Peak Build Rating 13 | 7 10 13 Average Rating 9 | 4 8 10 On Entrance 5 | . 7 10 Naked Turns . | . . . Heaviest Build 40 | 15 32 40 Greatest Support 40 | 20 20 40 Greatest Overweight (x) 11 | . 1 11 Average Overweight (x) . | . . . Largest Inventory Capacity 15 | 8 15 15 Average Capacity 12 | 6 11 15 Most Carried 15 | 3 15 15 Average Carried 10 | 1 9 12 Final Capacity 15 | 8 15 15 Final Carried 15 | 3 15 8 Class Distribution -------------------- 100% | Mutant Dominant Class ---------------- Mutant | -10/Materials Mutant | -10/Subcaves Resources | -11 -10 -10 ----------- Run | Yrd Mat Sub Matter Collected 1164 | 137 677 350 Remotely . | . . . Salvage Created 940 | 53 588 299 Parts 54 | 7 32 15 Haulers Intercepted . | . . . Recyclers Shooed 6 | . 6 . Parts Field Recycled . | . . . Retrieved Matter . | . . . Parts Self-Destructed 10 | . . 10 Prevented . | . . . Kills | -11 -10 -10 ------- Run | Yrd Mat Sub Combat Hostiles Destroyed 22 | . 14 8 Melee 1 | . . 1 Guns 8 | . 7 1 Cannons 1 | . . 1 AOE 12 | . 7 5 Classes Destroyed 7 | 1 3 3 Tunneler 5 | 3 2 . Watcher 3 | . 3 . Swarmer 3 | . 3 . Grunt 12 | . 11 1 Sentry 1 | . . 1 Cobbler 1 | . . 1 Subdweller 6 | . . 6 Best Kill Streak 3 | 3 3 2 Combat Bots Only 3 | . 3 2 Max Kills in Single Turn 2 | 1 2 2 Gunslinging . | . . . Exploded 2 | . 2 2 Melee 1 | . . 1 Uniques/NPCs Destroyed . | . . . Combat | -11 -10 -10 -------- Run | Yrd Mat Sub Hostile Shots Fired 140 | . 53 87 Missed 36 | . 17 19 Damage Taken 1849 | . 427 1422 Core 267 | . 69 198 Absorbed by Shields . | . . . Regen/Repaired (Parts) 32 | . 32 . Core Remaining (%) 100 | 100 . . Volleys Fired 96 | 4 61 31 Largest 2 | 2 2 2 Hottest 72 | 40 60 72 Shots Fired 184 | 8 117 59 Gun 151 | 8 114 29 Cannon 18 | . . 18 Launcher 15 | . 3 12 Special . | . . . Kinetic 150 | 8 95 47 Thermal . | . . . Explosive 15 | . 3 12 Electromagnetic 19 | . 19 . Robot Hit Streak 16 | 5 10 16 Robot Miss Streak 4 | . 3 4 Penetration Max . | . . . Secondary Targets 1 | . 1 . Max Gunslinging Chain 1 | . 1 . Shots Hit Robots 131 | 5 80 46 Core Hits 49 | 3 33 13 Critical Kills 1 | 1 . . Critical Parts Destroyed 1 | . 1 . Critical Strikes 2 | 1 1 . Destroy 2 | 1 1 . Melee Attacks 19 | . 5 14 Impact 13 | . . 13 Slashing . | . . . Piercing . | . . . Sneak Attacks 7 | . 5 2 Combat Hostiles . | . . . Follow-up Attacks . | . . . Damage Inflicted 2795 | 76 1401 1318 Guns 1388 | 64 966 358 Cannons 165 | . . 165 Explosions 1042 | . 399 643 Melee 152 | . . 152 Ramming 48 | 12 36 . Kinetic 1351 | 64 764 523 Thermal 79 | . 79 . Explosive 963 | . 320 643 Electromagnetic 202 | . 202 . Impact 152 | . . 152 Slashing . | . . . Piercing . | . . . Highest Corruption . | . . . Average Corruption . | . . . Corruption Purged . | . . . Corruption Blocked . | . . . Overload Shots . | . . . Overflow Damage 12 | . 2 10 Projectiles . | . . . Explosions 2 | . 2 . Melee 10 | . . 10 Knockbacks 5 | . . 5 Impact 3 | . . 3 Kinetic 2 | . . 2 Secondary . | . . . Self-Inflicted Damage 52 | . . 52 Shots 2 | . . 2 Rammed . | . . . Targets Rammed 5 | 1 4 . Kicked 5 | 1 4 . Crushed . | . . . Highest Temperature 20 | . 18 20 Average Temperature 8 | . 8 8 Received Heat Transfer 585 | . 213 372 Siege Activations . | . . . Robots Corrupted 1 | . . 1 Combat Hostiles . | . . . Parts Fried 1 | . . 1 Impact Corruptions 1 | . . 1 Robots Melted . | . . . Combat Hostiles . | . . . Parts Melted . | . . . Heat Transferred 50 | . 50 . Parts Sabotaged . | . . . Parts Stolen . | . . . Parts Stripped . | . . . Power Chain Reactions 1 | . 1 . Alert | -11 -10 -10 ------- Run | Yrd Mat Sub Peak Influence 220 | 15 220 . Initial 9 | . 9 . Average 63 | 3 66 . Maximum Alert Level 1 | . 1 . Low Security (%) 99 | 100 99 . Level 1 . | . . . Level 2 . | . . . Level 3 . | . . . Level 4 . | . . . Level 5 . | . . . High Security . | . . . Max Security . | . . . Squads Dispatched 3 | . 3 . Investigation 2 | . 2 . Extermination . | . . . Reinforcement 1 | . 1 . Assault . | . . . Garrison . | . . . Intercept . | . . . Searches Triggered . | . . . Construction Impeded . | . . . Haulers Reinforced . | . . . Active Scanning Responses . | . . . Cargo Convoy Interrupts . | . . . Stealth | -11 -10 -10 --------- Run | Yrd Mat Sub Distress Signals 1 | . 1 . Communications Jammed . | . . . Distress Signals . | . . . Times Spotted 37 | . 26 11 Peak Tracking Total 4 | . 4 4 Tactical Retreats . | . . . Traps | -11 -10 -10 ------- Run | Yrd Mat Sub Traps Triggered 2 | . 2 . Indirectly . | . . . Trap Hack Attempts 59 | . 59 . Triggered . | . . . Disarmed 2 | . 2 . Reprogrammed 6 | . 6 . Reused . | . . . Traps Extracted . | . . . Installed . | . . . Triggered 2 | . . 2 Machines | -11 -10 -10 ---------- Run | Yrd Mat Sub Machines Disabled . | . . . Max in Single Turn . | . . . Machines Repaired . | . . . Machines Dismantled . | . . . Machines Sabotaged . | . . . Overloaded Fab Kills . | . . . Hacking | -11 -10 -10 --------- Run | Yrd Mat Sub Machines Accessed 7 | . 7 . Terminals 6 | . 6 . Fabricators . | . . . Repair Stations 1 | . 1 . Recycling Units . | . . . Scanalyzers . | . . . Garrison Access . | . . . Total Hacks 24 | . 24 . Successful 14 | . 14 . Failed 10 | . 10 . Catastrophic . | . . . Database Lockouts . | . . . Manual 15 | . 15 . Terminals 22 | . 22 . Fabricators . | . . . Repair Stations 2 | . 2 . Recycling Units . | . . . Scanalyzers . | . . . Garrison Access . | . . . Terminal Hacks 4 | . 4 . Part Schematic 1 | . 1 . Prototype ID Bank 1 | . 1 . Terminal Index 1 | . 1 . Locate Traps 1 | . 1 . Fabricator Hacks . | . . . Repair Station Hacks 2 | . 2 . Scan Component 1 | . 1 . Repair 1 | . 1 . Recycling Unit Hacks . | . . . Scanalyzer . | . . . Garrison Access Hacks . | . . . Unauthorized Hacks 8 | . 8 . Terminals 8 | . 8 . Botnet 3 | . 3 . Skim 5 | . 5 . Fabricators . | . . . Repair Stations . | . . . Recycling Units . | . . . Scanalyzers . | . . . Garrison Access . | . . . Data Cores Recovered . | . . . Used . | . . . Hacking Detections 7 | . 7 . Full Trace Events . | . . . Feedback Events . | . . . Feedback Blocked . | . . . Robot Schematics Acquired . | . . . Robots Built . | . . . Authchips . | . . . Time . | . . . Total Robot Build Rating . | . . . Part Schematics Acquired 1 | . 1 . Parts Built . | . . . Authchips . | . . . Time . | . . . Total Part Build Rating . | . . . Parts Repaired 1 | . 1 . Time 26 | . 26 . Parts Recycled . | . . . Recycled Matter . | . . . Retrieved Matter . | . . . Retrieved Components . | . . . Parts Scanalyzed . | . . . Part Schematics Acquired . | . . . Parts Damaged . | . . . Bothacking | -11 -10 -10 ------------ Run | Yrd Mat Sub Used RIF Installer . | . . . Robots Hacked 4 | . 3 1 Non-combat 4 | . 3 1 Combat . | . . . Robot Hacks Applied 5 | . 4 1 parse_system 1 | . . 1 no_distress 3 | . 3 . find_recycling 1 | . 1 . Relay Couplers Released . | . . . Fabnet Peak Effective % . | . . . Robots Rewired . | . . . Allies Hacked . | . . . Hacks Repelled . | . . . Allies | -11 -10 -10 -------- Run | Yrd Mat Sub Total Allies . | . . . Largest Group . | . . . Highest-Rated Group . | . . . Highest-Rated Ally . | . . . Total Orders . | . . . Ally Attacks . | . . . Total Damage . | . . . Kills . | . . . Allies Corrupted . | . . . Allies Melted . | . . . Intel | -11 -10 -10 ------- Run | Yrd Mat Sub Robot Analysis Total . | . . . Derelict Logs Recovered 1 | . . 1 Drone Launches . | . . . Drone Recoveries . | . . . Exploration | -11 -10 -10 ------------- Run | Yrd Mat Sub Turns Passed 3648 | 101 2019 1528 Spaces Moved 1845 | 65 1029 751 Core 7 | 4 . 3 Treads . | . . . Legs 1693 | 61 1029 603 Wheels 145 | . . 145 Hover . | . . . Flight . | . . . Fastest Speed 50 | 50 120 110 Average Speed 165 | 115 160 176 Slowest Speed 600 | 120 190 600 Overloaded Moves . | . . . Propulsion Burnouts . | . . . Robots Hopped . | . . . Cave-ins Triggered . | . . . Exploration Rate (%) 50 | 4 99 49 Regions Visited 2 Branch Regions 1 Pre-discovered Areas . | . . . Known Exits Taken 1 | . 1 . Unknown Exits Taken 1 | 1 . . Scrap Searched 1 | . . 1 Spaces Dug 8 | . . 8 Terrain Destroyed 103 | . 30 73 Melee 8 | . . 8 Projectile . | . . . AOE 95 | . 30 65 Terrain Rammed . | . . . Walls Destroyed . | . . . Machines Disabled . | . . . Actions | -11 -10 -10 --------- Run | Yrd Mat Sub Total 2213 | 79 1267 867 Wait 104 | . 61 43 Move 1844 | 65 1028 751 Hop . | . . . Pick Up 22 | 3 17 2 Fast Attach 9 | 7 . 2 Attach 10 | . 1 9 Detach . | . . . Swap 38 | . 23 15 Drop 8 | . 8 . Fire 96 | 4 61 31 Melee 19 | . 5 14 Ram . | . . . Kick 4 | . 4 . Crush . | . . . Escape Stasis . | . . . Rewire . | . . . Trap 59 | . 59 . Miscellaneous . | . . . Route ------- -11/Scrapyard -10/Materials (discovered 6 exits: [*Mat x3] / [*Min x2] / *Sub) -10/Subcaves (discovered 2 exits: [*Mat] / Rec) History --------- Turn | Location | Event 6 | -11/Scrapyard | Discovered new exit (range 15) 102 | -11/Scrapyard | Entered Materials 191 | -10/Materials | Discovered new exit (range 5) 243 | -10/Materials | Discovered new exit (range 13) 313 | -10/Materials | Build established: Mutant 338 | -10/Materials | Repaired Grenade Launcher 360 | -10/Materials | Discovered new exit (range 14) 809 | -10/Materials | Discovered new exit (range 16) 1346 | -10/Materials | Learned 4 Subcaves zone layouts 1455 | -10/Materials | Discovered new exit (range 15) 1507 | -10/Materials | Learned 4 Recycling zone layouts 1538 | -10/Materials | Identified exit to Subcaves 1538 | -10/Materials | Learned location of 2 exits from Materials 1557 | -10/Materials | Learned 4 Recycling zone layouts 1567 | -10/Materials | Learned Materials stockpile data 1588 | -10/Materials | Learned location of 1 exit from Recycling 1662 | -10/Materials | Learned Materials stockpile data 1714 | -10/Materials | Learned Materials stockpile data 2121 | -10/Materials | Entered Subcaves 2125 | -10/Subcaves | Identified exit to Recycling 2762 | -10/Subcaves | Lost 3 parts (2n1w) 3163 | -10/Subcaves | Discovered new exit (range 6) 3431 | -10/Subcaves | Core integrity fell below 50% 3467 | -10/Subcaves | Lost 5 parts (1p2n1u1w) 3633 | -10/Subcaves | Core integrity fell below 20% 3649 | -10/Subcaves | Destroyed by U3-MDP(R) with Subdweller Laser Last Messages --------------- 03439_ SD-RQE(R) destroyed. 03445_ Subatomizers dissect the Sub. Monowheel. 03460_ Acquired Sub. Monowheel. 03466_ Acquired 29 matter. 03467_ Acquired 49 matter. 03470_ Subatomizers dissect the Disposable Heat Sink. 03470_ Acquired Signal Interpreter. 03499_ Subatomizers dissect the Disposable Heat Sink. 03622_ MW-X8L(R) destroyed. 03624_ Assault Rifle destroyed. 03627_ Rocket Launcher destroyed. 03633_ The unstable cave ceiling collapses. 03633_ Sub. Monowheel destroyed. 03634_ QM-ZFV(R) knocked back. 03636_ The unstable cave ceiling collapses. 03637_ Lrg. Matter Pod destroyed. 03638_ QM-ZFV(R) knocked back. 03639_ Ion Engine destroyed. 03642_ QM-ZFV(R) destroyed. 03645_ Acquired 22 matter. Map ----- +----------------------------------------------------+ | ##??????????????# ##????????????????????????? | | ###?????????????### #??????????#??????????????? | | #???????????????# ##?????????#??????????????? | | #??????????????## #?????????#??????????????? | | #??????????????# ##?????????#??????????????? | | #####??????????????## ##????????#??????????????? | | ????????????????????# #????????#??????????????? | | ##??????????????????# ##??????????????????????? | | #??????????????????### ##??###????????????????? | | #??????????????????### #### #????????????????? | | #??????????????????# ## #????????????????? | | #?????????????????## ##???????????????? | | ##?????????????????# ##??????????????? | | ##?????????????????# ### ??????????????? | | ???????????????????# #?# ????????????? | | ???????????????????# ### ### ????????????? | | ???????????????????###?### ### " ???????????? | | ?????????????????????##### ## < ?????????????? | | ?????????????????????# ##< ??????????????? | | ?????????????????????## ## & "??????????????? | | ??????????????????????### R < ??????????????? | | ??????????#??####?????#### # "??????????????? | | ??????????#??# ##????# ## ??????????????? | | ??????????#?## ####?# R ## ??????????????? | | ??????????### ### ## ??????????????? | | ??????????## ## @% #?# ??????????????? | | ?????????? ## #?## ??????????????? | | ?????????? ## """ ##?# ??????????????? | | ?????????? ###"" ## * #??## ??????????????? | | ?????????? #?## ##### & ##???# ??????????????? | | ?????????? ####"######## & #??## ??????????????? | | ??????????### " ####""" ##??# ??????????????? | | ??????????#?#" ## " " #??## ??????????????? | | ????????????# " " # #??# ??????????????? | | ???????????## " "#" ##??## ??????????????? | | ??????????## """"" ##????##??????????????? | | ??????????# ###""" ###???????????????????##? | | ??????????# ##?####"##?????????###???????? ## | | ??????????##### ##????# #????????## ##????## # | | ???????????????????????# #????????# #????# | | ???????????????????????# #?###????# ##???# # | | ???????????????????????# ### #???## ##### | | ???????????????????????# #??## | | ??????????????????????## #### # | | ????????????????????### ### ## ### | | ????????????????????# ##?## ## #### ##? | | ????????????????????## ##??##### ### ##?# ## | | ????????????????????## ##########??# ### # | | ???????????????????## ###??## | | ???????????????????# #?## # | +----------------------------------------------------+ Best States ------------- Heat Dissipation 25 Energy Generation 10 Energy Capacity 250 Matter Stores 419 Matter Capacity 450 Sight Range 16 Terrain Scan Range 16 Terrain Scan Density 10 Armor Coverage 225 Evasion (%) 55 Item Schematics ----------------- Huge Storage Unit | -10/Materials | Hacked Robot Schematics ------------------ None Fabricated ------------ Nothing Alien Tech Used ----------------- None Achievements -------------- None Challenges ------------ None Game ------ Seed EfficiencyAuthchipScythe Manual? 0 Play Time 00:30:55 Cumulative 38.3 hours Start 2025.03.26 @ 17:21:52 End 2025.03.26 @ 17:50:35 Sessions 1 Manual Loads 0 Difficulty Rogue Special Mode None Game No. 45 Rogue 45 Adventurer 0 Explorer 0 Win Type - Total 0 Types 0/0/0/0/0/0/0/0/0 Lore% 9 Gallery% 31 Achievement% 26 Wizard Run 0 Options --------- Layout 0 ASCII 0 Keyboard 1 Movement Numpad Keybinds 0 Fullscreen 1 Font 24/Terminus Map View 76x50 Zoom Use 0% Tactical HUD 1 Map Filters NONE Filters NONE Steam 1 RUN: 9af1f479-dca7-49eb-af19-c9a08cbe1872